fUST/lending_fUST_20250201
["ID","MTS","AMOUNT","RATE_DAILY","PERIOD"]
[351156193,1738367437004,-812.76,0.0001882,2]
[351156194,1738367437014,-500.0,0.0001882,2]
[351156195,1738367437024,-848.51,0.0001882,2]
[351156196,1738367437033,-500.0,0.0001882,2]
[351156197,1738367437043,-500.0,0.0001882,2]
[351156198,1738367437052,-272.21,0.0001882,2]
[351156199,1738367437061,-500.0,0.0001882,2]
[351156200,1738367437070,-3906.34,0.0001882,2]
[351156201,1738367437079,-508.3,0.0001882,2]
[351156202,1738367437089,-151.0,0.0001882,2]
[351156203,1738367437100,-151.0,0.0001882,2]
[351156204,1738367437109,-151.0,0.0001882,2]
[351156205,1738367437119,-500.0,0.00018821,2]
[351156206,1738367437129,-500.0,0.00018821,2]
[351156207,1738367437138,-500.0,0.00018821,2]
[351156208,1738367437148,-151.0,0.00018821,2]
[351156209,1738367437157,-500.0,0.00018821,2]
[351156210,1738367437166,-151.0,0.00018821,2]
[351156211,1738367437175,-151.0,0.00018821,2]
[351156212,1738367437185,-151.0,0.00018821,2]
[351156213,1738367437194,-151.0,0.00018821,2]
[351156214,1738367437204,-151.0,0.00018821,2]
[351156215,1738367437213,-151.0,0.00018821,2]
[351156216,1738367437223,-152.155522,0.00018821,2]
[351156217,1738367437232,-288.600353,0.00018821,2]
[351156218,1738367437241,-288.600353,0.00018821,2]
[351156219,1738367437251,-201.736896,0.00018821,2]
[351156220,1738367437261,-151.0,0.00018821,2]
[351156221,1738367437271,-201.736896,0.00018821,2]
[351156223,1738367437281,-151.0,0.00018821,2]
[351156225,1738367437290,-151.0,0.00018821,2]
[351156226,1738367437299,-151.0,0.00018821,2]
[351156228,1738367437309,-173.29454244,0.00018879,2]
[351156229,1738367437319,-500.0,0.00018895,2]
[351156230,1738367437328,-500.0,0.00018895,2]
[351156231,1738367437338,-500.0,0.00018895,2]
[351156232,1738367437347,-541.46,0.00018895,2]
[351156233,1738367437357,-500.0,0.00018895,2]
[351156234,1738367437366,-500.0,0.00018895,2]
[351156235,1738367437376,-943.52,0.00018895,2]
[351156236,1738367437386,-1015.48,0.00018895,2]
[351156237,1738367437395,-2123.46,0.00018895,2]
[351156238,1738367437405,-1236.14,0.00018895,2]
[351156239,1738367437414,-500.0,0.00018895,2]
[351156240,1738367437424,-151.0,0.000189,2]
[351156241,1738367437433,-378.3430857,0.000189,2]
[351156242,1738367437442,-1375.62,0.00018957,2]
[351156243,1738367437454,-2024.99,0.00018957,2]
[351156244,1738367437463,-500.0,0.00018957,2]
[351156245,1738367437473,-500.0,0.00018957,2]
[351156246,1738367437482,-500.0,0.00018957,2]
[351156247,1738367437491,-500.0,0.00018957,2]
[351156248,1738367437502,-500.0,0.00018957,2]
[351156249,1738367437511,-1015.59,0.00018957,2]
[351156250,1738367437520,-1697.67,0.00018957,2]
[351156252,1738367437530,-812.76,0.00018957,2]
[351156253,1738367437539,-500.0,0.00018957,2]
[351156254,1738367437548,-848.51,0.00018957,2]
[351156255,1738367437558,-500.0,0.00018957,2]
[351156257,1738367437567,-500.0,0.00018957,2]
[351156259,1738367437576,-500.0,0.00018957,2]
[351156261,1738367437585,-3906.34,0.00018957,2]
[351156263,1738367437595,-508.3,0.00018957,2]
[351156265,1738367437604,-23359.03821105,0.00018958,5]
[351156276,1738367437702,-24961.54574568,0.00018958,5]
[351156278,1738367437712,-500.0,0.00018958,2]
[351156280,1738367437722,-500.0,0.00018958,2]
[351156282,1738367437732,-500.0,0.00018958,2]
[351156284,1738367437741,-500.0,0.00018958,2]
[351156286,1738367437750,-514.10189715,0.00018965,2]
[351156289,1738367437759,-9843.0,0.00019,2]
[351156291,1738367437769,-1000.0,0.00019032,2]
[351156293,1738367437778,-1001.04718644,0.00019032,2]
[351156294,1738367437787,-500.0,0.00019032,2]
[351156297,1738367437796,-614.2,0.00019032,2]
[351156299,1738367437806,-554.58106052,0.00019032,2]
[351156301,1738367437815,-541.46,0.00019032,2]
[351156303,1738367437825,-500.0,0.00019032,2]
[351156305,1738367437834,-500.0,0.00019032,2]
[351156307,1738367437843,-943.52,0.00019032,2]
[351156309,1738367437854,-1015.48,0.00019032,2]
[351156311,1738367437864,-2123.46,0.00019032,2]
[351156313,1738367437874,-1236.14,0.00019032,2]
[351156315,1738367437883,-500.0,0.00019032,2]
[351156316,1738367437894,-378.34308542,0.00019038,2]
[351156317,1738367437903,-414.35131221,0.00019078,2]
[351156318,1738367437912,-151.0,0.00019094,2]
[351156319,1738367437921,-1375.62,0.00019094,2]
[351156321,1738367437931,-2024.99,0.00019094,2]
[351156323,1738367437940,-500.0,0.00019094,2]
[351156324,1738367437949,-381.28,0.00019094,2]
[351156325,1738367437959,-500.0,0.00019094,2]
[351156326,1738367437969,-500.0,0.00019094,2]
[351156327,1738367437979,-151.0,0.00019094,2]
[351156328,1738367437988,-500.0,0.00019094,2]
[351156329,1738367437997,-1015.59,0.00019094,2]
[351156330,1738367438007,-1697.67,0.00019094,2]
[351156331,1738367438016,-151.0,0.00019094,2]
[351156332,1738367438026,-251.113024,0.00019094,2]
[351156333,1738367438035,-812.76,0.00019094,2]
[351156334,1738367438045,-500.0,0.00019094,2]
[351156335,1738367438054,-288.600353,0.00019094,2]
[351156336,1738367438064,-848.51,0.00019094,2]
[351156337,1738367438074,-288.600353,0.00019094,2]
[351156338,1738367438083,-500.0,0.00019094,2]
[351156339,1738367438094,-201.736896,0.00019094,2]
[351156340,1738367438104,-274.665893,0.00019094,2]
[351156341,1738367438114,-201.736896,0.00019094,2]
[351156342,1738367438123,-500.0,0.00019094,2]
[351156343,1738367438132,-500.0,0.00019094,2]
[351156344,1738367438141,-3906.34,0.00019094,2]
[351156345,1738367438151,-508.3,0.00019094,2]
[351156346,1738367438160,-151.0,0.00019094,2]
[351156347,1738367438169,-151.0,0.00019094,2]
[351156348,1738367438178,-500.0,0.00019095,2]
[351156349,1738367438187,-500.0,0.00019095,2]
[351156350,1738367438197,-500.0,0.00019095,2]
[351156351,1738367438206,-500.0,0.00019095,2]
[351156352,1738367438216,-151.0,0.000191,2]
[351156353,1738367438225,-570.51321174,0.00019169,2]
[351156354,1738367438234,-541.46,0.00019169,2]
[351156355,1738367438243,-500.0,0.00019169,2]
[351156356,1738367438252,-632.56,0.00019169,2]
[351156357,1738367438262,-943.52,0.00019169,2]
[351156358,1738367438271,-1015.48,0.00019169,2]
[351156359,1738367438281,-2123.46,0.00019169,2]
[351156360,1738367438290,-1236.14,0.00019169,2]
[351156361,1738367438299,-500.0,0.00019169,2]
[351156362,1738367438308,-378.34308542,0.00019176,2]
[351156363,1738367438318,-162.518657,0.00019178,2]
[351156364,1738367438328,-151.0,0.000192,2]
[351156365,1738367438338,-186.199059,0.00019231,2]
[351156366,1738367438348,-186.199059,0.00019231,2]
[351156367,1738367438357,-151.0,0.00019231,2]
[351156368,1738367438367,-198.047543,0.00019231,2]
[351156369,1738367438376,-198.047543,0.00019231,2]
[351156370,1738367438386,-151.0,0.00019231,2]
[351156371,1738367438396,-1375.62,0.00019231,2]
[351156372,1738367438406,-2024.99,0.00019231,2]
[351156373,1738367438415,-500.0,0.00019231,2]
[351156374,1738367438425,-500.0,0.00019231,2]
[351156375,1738367438434,-500.0,0.00019231,2]
[351156376,1738367438444,-500.0,0.00019231,2]
[351156377,1738367438456,-1015.59,0.00019231,2]
[351156378,1738367438466,-1697.67,0.00019231,2]
[351156379,1738367438476,-812.76,0.00019231,2]
[351156380,1738367438485,-500.0,0.00019231,2]
[351156381,1738367438495,-848.51,0.00019231,2]
[351156382,1738367438506,-500.0,0.00019231,2]
[351156383,1738367438515,-500.0,0.00019231,2]
[351156384,1738367438527,-500.0,0.00019231,2]
[351156385,1738367438538,-3906.34,0.00019231,2]
[351156386,1738367438548,-508.3,0.00019231,2]
[351156387,1738367438558,-500.0,0.00019232,2]
[351156388,1738367438567,-500.0,0.00019232,2]
[351156389,1738367438577,-500.0,0.00019232,2]
[351156390,1738367438587,-500.0,0.00019232,2]
[351156391,1738367438597,-541.46,0.00019306,2]
[351156392,1738367438607,-500.0,0.00019306,2]
[351156393,1738367438617,-284.36447715,0.00019306,2]
[351156394,1738367438639,-500.0,0.00018135,2]
[351156395,1738367438648,-659.15552285,0.00019306,2]
[351156396,1738367438658,-1015.48,0.00019306,2]
[351156397,1738367438667,-2123.46,0.00019306,2]
[351156398,1738367438677,-1236.14,0.00019306,2]
[351156399,1738367438686,-500.0,0.00019306,2]
[351156400,1738367438695,-378.34308542,0.00019314,2]
[351156401,1738367438809,-151.0,0.00019368,2]
[351156402,1738367438819,-151.0,0.00019368,2]
[351156403,1738367438829,-151.0,0.00019368,2]
[351156404,1738367438839,-151.0,0.00019368,2]
[351156405,1738367438849,-151.0,0.00019368,2]
[351156406,1738367438860,-1375.62,0.00019368,2]
[351156407,1738367438870,-2024.99,0.00019368,2]
[351156408,1738367438880,-531.03,0.00019368,2]
[351156409,1738367438890,-500.0,0.00019368,2]
[351156410,1738367438900,-500.0,0.00019368,2]
[351156411,1738367438910,-151.0,0.00019368,2]
[351156412,1738367438920,-500.0,0.00019368,2]
[351156413,1738367438930,-1015.59,0.00019368,2]
[351156414,1738367438940,-1697.67,0.00019368,2]
[351156415,1738367438951,-151.0,0.00019368,2]
[351156416,1738367438960,-812.76,0.00019368,2]
[351156417,1738367438970,-500.0,0.00019368,2]
[351156418,1738367438980,-500.0,0.00019368,2]
[351156419,1738367438989,-288.600353,0.00019368,2]
[351156420,1738367438999,-848.51,0.00019368,2]
[351156421,1738367439008,-288.600353,0.00019368,2]
[351156422,1738367439022,-500.0,0.00019368,2]
[351156423,1738367439031,-201.736896,0.00019368,2]
[351156424,1738367439041,-201.736896,0.00019368,2]
[351156425,1738367439050,-500.0,0.00019368,2]
[351156426,1738367439059,-500.0,0.00019368,2]
[351156427,1738367439071,-3906.34,0.00019368,2]
[351156428,1738367439080,-508.3,0.00019368,2]
[351156429,1738367439091,-151.0,0.00019368,2]
[351156430,1738367439100,-151.0,0.00019368,2]
[351156431,1738367439111,-500.0,0.00019369,2]
[351156432,1738367439121,-500.0,0.00019369,2]
[351156433,1738367439132,-500.0,0.00019369,2]
[351156434,1738367439142,-151.0,0.000194,2]
[351156435,1738367439152,-420.0,0.00019424,2]
[351156436,1738367439162,-541.46,0.00019443,2]
[351156437,1738367439172,-500.0,0.00019443,2]
[351156438,1738367439181,-943.52,0.00019443,2]
[351156439,1738367439191,-1015.48,0.00019443,2]
[351156440,1738367439201,-2123.46,0.00019443,2]
[351156441,1738367439210,-299.88364217,0.00019443,2]
[351156442,1738367439222,-665.88949903,0.00019443,2]
[351156445,1738367439458,-500.0,0.00017936,2]
[351156446,1738367439467,-500.0,0.00018073,2]
[351156447,1738367439478,-622.66962691,0.00018134,2]
[351156448,1738367439489,-500.0,0.0001821,2]
[351156449,1738367439500,-500.0,0.00018272,2]
[351156450,1738367439510,-170.97959239,0.00018347,2]
[351156467,1738367890010,172.878268,0.00013973,2]
[351156468,1738368356797,-2662.763198,0.000164,2]
[351156469,1738368356821,-581.27,0.0001686,2]
[351156470,1738368356846,-386.06858417,0.0001686,2]
[351156471,1738368356871,-572.46,0.0001686,2]
[351156472,1738368356894,-551.72344432,0.00016861,2]
[351156473,1738368556105,-500.0,0.0001686,2]
[351156474,1738368556129,-500.0,0.0001686,2]
[351156475,1738368556152,-500.0,0.0001686,2]
[351156476,1738368556174,-500.0,0.0001686,2]
[351156477,1738368556195,-500.0,0.0001686,2]
[351156478,1738368556217,-0.87140435,0.0001686,2]
[351156682,1738368636025,-499.12859565,0.0001686,2]
[351156683,1738368636035,-585.1,0.0001686,2]
[351156684,1738368636044,-500.0,0.0001686,2]
[351156685,1738368636054,-463.97140435,0.0001686,2]
[351156686,1738368636077,-128.78859565,0.0001686,2]
[351156687,1738368636086,-1116.13,0.0001686,2]
[351156688,1738368636095,-91.61197188,0.0001686,2]
[351156733,1738368637990,-592.85802812,0.0001686,2]
[351156734,1738368638001,-15525.09913122,0.00016861,2]
[351156738,1738368638255,-4397.34046042,0.00016861,2]
[351156739,1738368638267,-1063.61729777,0.00016861,2]
[351156740,1738368638279,-3037.0,0.00016861,2]
[351156741,1738368638310,-325.21966627,0.00016861,2]
[351156742,1738368638320,-500.0,0.00016997,2]
[351156743,1738368638330,-285.79750275,0.00016997,2]
[351156744,1738368638369,-214.20249725,0.00016997,2]
[351156745,1738368638383,-585.1,0.00016997,2]
[351156746,1738368638392,-592.76,0.00016997,2]
[351156747,1738368638402,-1116.13,0.00016997,2]
[351156748,1738368638412,-684.47,0.00016997,2]
[351156749,1738368638422,-334.6794241,0.00017001,2]
[351156750,1738368638432,-500.0,0.00017134,2]
[351156751,1738368638442,-500.0,0.00017134,2]
[351156752,1738368638452,-585.1,0.00017134,2]
[351156753,1738368638462,-592.76,0.00017134,2]
[351156754,1738368638472,-1116.13,0.00017134,2]
[351156755,1738368638481,-669.81677137,0.00017134,2]
[351156756,1738368638495,-14.65322863,0.00017134,2]
[351156757,1738368638505,-500.0,0.00017271,2]
[351156758,1738368638515,-500.0,0.00017271,2]
[351156759,1738368638525,-585.1,0.00017271,2]
[351156760,1738368638534,-592.76,0.00017271,2]
[351156761,1738368638544,-1116.13,0.00017271,2]
[351156762,1738368638554,-244.65396082,0.00017271,2]
[351156786,1738368640416,-439.81603918,0.00017271,2]
[351156787,1738368640426,-500.0,0.00017408,2]
[351156788,1738368640435,-500.0,0.00017408,2]
[351156789,1738368640444,-585.1,0.00017408,2]
[351156790,1738368640453,-592.76,0.00017408,2]
[351156791,1738368640463,-1116.13,0.00017408,2]
[351156792,1738368640472,-684.47,0.00017408,2]
[351156793,1738368640481,-418.38401953,0.00017445,2]
[351156794,1738368640490,-500.0,0.00017545,2]
[351156795,1738368640499,-500.0,0.00017545,2]
[351156796,1738368640509,-585.1,0.00017545,2]
[351156797,1738368640518,-592.76,0.00017545,2]
[351156798,1738368640527,-1116.13,0.00017545,2]
[351156799,1738368640536,-684.47,0.00017545,2]
[351156800,1738368640546,-217.0494119,0.00017589,2]
[351156801,1738368640555,-389.95489401,0.00017682,2]
[351156802,1738368640564,-500.0,0.00017682,2]
[351156803,1738368640573,-585.1,0.00017682,2]
[351156804,1738368640582,-592.76,0.00017682,2]
[351156805,1738368640592,-1116.13,0.00017682,2]
[351156806,1738368640601,-684.47,0.00017682,2]
[351156807,1738368640610,-500.0,0.00017797,2]
[351156808,1738368640619,-500.0,0.00017798,2]
[351156809,1738368640629,-500.0,0.00017798,2]
[351156810,1738368640638,-500.0,0.00017798,2]
[351156811,1738368640646,-500.0,0.00017798,2]
[351156812,1738368640655,-500.0,0.00017798,2]
[351156813,1738368640664,-500.0,0.00017798,2]
[351156814,1738368640673,-500.0,0.00017798,2]
[351156815,1738368640682,-1284.54,0.00017798,2]
[351156816,1738368640690,-500.0,0.00017798,2]
[351156817,1738368640699,-500.0,0.00017798,2]
[351156818,1738368640708,-500.0,0.00017798,2]
[351156819,1738368640717,-208.49170423,0.00017798,2]
[351156820,1738368640727,-630.59278394,0.00017798,2]
[351156821,1738368640736,-868.14,0.00017798,2]
[351156822,1738368640745,-500.0,0.00017798,2]
[351156823,1738368640754,-500.0,0.00017798,2]
[351156824,1738368640763,-500.0,0.00017798,2]
[351156825,1738368640772,-500.0,0.00017798,2]
[351156826,1738368640781,-500.0,0.00017798,2]
[351156827,1738368640791,-500.0,0.00017798,2]
[351156828,1738368640800,-500.0,0.00017798,2]
[351156829,1738368640811,-518.31,0.00017798,2]
[351156830,1738368640821,-500.0,0.00017798,2]
[351156831,1738368640832,-500.0,0.00017798,2]
[351156832,1738368640842,-500.0,0.00017798,2]
[351156833,1738368640855,-500.0,0.00017798,2]
[351156834,1738368640864,-500.0,0.00017798,2]
[351156835,1738368640873,-500.0,0.00017798,2]
[351156836,1738368640885,-500.0,0.00017798,2]
[351156837,1738368640894,-500.0,0.00017798,2]
[351156838,1738368640904,-500.0,0.00017798,2]
[351156839,1738368640913,-500.0,0.00017798,2]
[351156840,1738368640922,-500.0,0.00017798,2]
[351156841,1738368640931,-500.0,0.00017798,2]
[351156842,1738368640943,-509.32,0.00017798,2]
[351156843,1738368640952,-609.81,0.00017798,2]
[351156844,1738368640962,-500.0,0.00017798,2]
[351156845,1738368640971,-1052.31,0.00017798,2]
[351156846,1738368640981,-500.0,0.00017798,2]
[351156847,1738368640991,-500.0,0.00017798,2]
[351156848,1738368641000,-645.58975297,0.00017798,2]
[351156849,1738368641010,-500.0,0.00017798,2]
[351156850,1738368641021,-500.0,0.00017798,2]
[351156851,1738368641031,-601.51,0.00017798,2]
[351156852,1738368641041,-500.0,0.00017798,2]
[351156853,1738368641050,-570.53,0.00017798,2]
[351156854,1738368641060,-500.0,0.00017798,2]
[351156855,1738368641069,-2115.93,0.00017798,2]
[351156856,1738368641078,-500.0,0.00017798,2]
[351156857,1738368641087,-500.0,0.00017798,2]
[351156858,1738368641097,-500.0,0.00017798,2]
[351156859,1738368641107,-500.0,0.00017798,2]
[351156860,1738368641116,-500.0,0.00017798,2]
[351156861,1738368641125,-500.0,0.00017798,2]
[351156862,1738368641138,-532.74088484,0.00017799,2]
[351156863,1738368641148,-500.0,0.00017799,2]
[351156864,1738368641158,-500.0,0.00017799,2]
[351156865,1738368641287,-500.0,0.00017799,2]
[351156866,1738368641298,-590.152033,0.00017799,2]
[351156867,1738368641307,-500.0,0.00017819,2]
[351156868,1738368641317,-585.1,0.00017819,2]
[351156869,1738368641326,-592.76,0.00017819,2]
[351156870,1738368641336,-1116.13,0.00017819,2]
[351156871,1738368641345,-684.47,0.00017819,2]
[351156872,1738368641354,-500.0,0.00017934,2]
[351156873,1738368641363,-500.0,0.00017935,2]
[351156874,1738368641373,-500.0,0.00017935,2]
[351156875,1738368641388,-1284.54,0.00017935,2]
[351156876,1738368641398,-500.0,0.00017935,2]
[351156877,1738368641407,-868.14,0.00017935,2]
[351156878,1738368641416,-500.0,0.00017935,2]
[351156879,1738368641426,-500.0,0.00017935,2]
[351156880,1738368641435,-500.0,0.00017935,2]
[351156881,1738368641444,-518.31,0.00017935,2]
[351156882,1738368641454,-500.0,0.00017935,2]
[351156883,1738368641463,-500.0,0.00017935,2]
[351156884,1738368641472,-609.81,0.00017935,2]
[351156885,1738368641481,-1052.31,0.00017935,2]
[351156886,1738368641490,-500.0,0.00017935,2]
[351156887,1738368641499,-500.0,0.00017935,2]
[351156888,1738368641508,-500.0,0.00017935,2]
[351156889,1738368641518,-500.0,0.00017935,2]
[351156890,1738368641528,-570.53,0.00017935,2]
[351156891,1738368641536,-500.0,0.00017935,2]
[351156892,1738368641545,-2115.93,0.00017935,2]
[351156893,1738368641555,-500.0,0.00017935,2]
[351156894,1738368641565,-500.0,0.00017935,2]
[351156895,1738368641574,-500.0,0.00017935,2]
[351156896,1738368641583,-500.0,0.00017935,2]
[351156897,1738368641592,-500.0,0.00017936,2]
[351156898,1738368641601,-500.0,0.00017936,2]
[351156899,1738368641611,-500.0,0.00017936,2]
[351156900,1738368641620,-198.22703248,0.00017955,2]
[351156901,1738368641633,-500.0,0.00017956,2]
[351156902,1738368641645,-585.1,0.00017956,2]
[351156903,1738368641654,-592.76,0.00017956,2]
[351156904,1738368641664,-1116.13,0.00017956,2]
[351156905,1738368641673,-684.47,0.00017956,2]
[351156906,1738368641682,-166.94562089,0.00017971,2]
[351156907,1738368641691,-4889.68,0.00017998,2]
[351156908,1738368641700,-500.0,0.00017999,2]
[351156909,1738368641709,-10063.04559702,0.00018,2]
[351156996,1738368643568,-500.0,0.00017798,2]
[351156998,1738368643578,-2393.58440298,0.00018,2]
[351157000,1738368643588,-500.0,0.00018071,2]
[351157002,1738368643598,-224.17,0.00018072,2]
[351157003,1738368643607,-500.0,0.00018072,2]
[351157006,1738368643617,-1284.54,0.00018072,2]
[351157008,1738368643626,-500.0,0.00018072,2]
[351157009,1738368643637,-868.14,0.00018072,2]
[351157011,1738368643647,-500.0,0.00018072,2]
[351157013,1738368643656,-476.03497688,0.00018072,2]
[351157015,1738368643667,-500.0,0.00018072,2]
[351157018,1738368643682,-518.31,0.00018072,2]
[351157019,1738368643691,-500.0,0.00018072,2]
[351157022,1738368643701,-500.0,0.00018072,2]
[351157024,1738368643710,-609.81,0.00018072,2]
[351157026,1738368643719,-1052.31,0.00018072,2]
[351157028,1738368643729,-500.0,0.00018072,2]
[351157030,1738368643738,-500.0,0.00018072,2]
[351157032,1738368643747,-500.0,0.00018072,2]
[351157034,1738368643756,-640.52,0.00018072,2]
[351157036,1738368643765,-570.53,0.00018072,2]
[351157038,1738368643777,-500.0,0.00018072,2]
[351157040,1738368643789,-2115.93,0.00018072,2]
[351157043,1738368643803,-500.0,0.00018072,2]
[351157045,1738368643815,-500.0,0.00018072,2]
[351157047,1738368643827,-500.0,0.00018072,2]
[351157050,1738368643839,-500.0,0.00018072,2]
[351157052,1738368643851,-500.0,0.00018073,2]
[351157054,1738368643862,-500.0,0.00018073,2]
[351157056,1738368643875,-500.0,0.00018093,2]
[351157058,1738368643890,-585.1,0.00018093,2]
[351157061,1738368643901,-592.76,0.00018093,2]
[351157063,1738368643913,-773.32252838,0.00018093,2]
[351157230,1738368800717,172.386932,0.00013973,2]
[351157244,1738369747160,-300.0,0.00016167,2]
[351157245,1738369747189,-2218.3611722,0.00016168,2]
[351157246,1738369747210,-2153.1921314,0.00016168,2]
[351157247,1738369747231,-11953.13238037,0.00016168,2]
[351157248,1738369757181,-4439.8508,0.00016168,2]
[351157249,1738369767105,-7464.96912225,0.00016168,2]
[351157250,1738369767126,-505.57366034,0.00016338,2]
[351157251,1738369767145,-591.75,0.00016438,2]
[351157252,1738369767165,-501.26073703,0.00016438,2]
[351157253,1738369767189,-505.0343571,0.00016438,2]
[351157254,1738369767209,-557.61622156,0.00016438,2]
[351157255,1738369767229,-500.0,0.00016438,2]
[351157256,1738369767252,-500.0,0.00016438,2]
[351157257,1738369767275,-500.0,0.00016438,2]
[351157258,1738369767296,-500.0,0.00016438,2]
[351157259,1738369767317,-500.0,0.00016438,2]
[351157260,1738369767347,-500.0,0.00016438,2]
[351157261,1738369767375,-500.0,0.00016438,2]
[351157262,1738369767398,-500.0,0.00016438,2]
[351157263,1738369767423,-500.0,0.00016438,2]
[351157264,1738369767452,-500.0,0.00016438,2]
[351157265,1738369767478,-500.0,0.00016438,2]
[351157266,1738369767502,-500.0,0.00016438,2]
[351157267,1738369767529,-500.0,0.00016438,2]
[351157268,1738369767556,-500.0,0.00016438,2]
[351157269,1738369767578,-500.0,0.00016438,2]
[351157270,1738369767604,-500.0,0.00016438,2]
[351157271,1738369767631,-500.0,0.00016438,2]
[351157272,1738369767658,-500.0,0.00016438,2]
[351157273,1738369767681,-500.0,0.00016438,2]
[351157274,1738369767708,-500.0,0.00016438,2]
[351157275,1738369767732,-500.0,0.00016438,2]
[351157276,1738369767758,-500.0,0.00016438,2]
[351157277,1738369767783,-500.0,0.00016438,2]
[351157278,1738369767809,-500.0,0.00016438,2]
[351157279,1738369767835,-500.0,0.00016438,2]
[351157280,1738369767861,-844.76,0.00016438,2]
[351157281,1738369767886,-500.0,0.00016438,2]
[351157282,1738369767909,-500.0,0.00016438,2]
[351157283,1738369767937,-519.33,0.00016438,2]
[351157284,1738369767961,-500.0,0.00016438,2]
[351157285,1738369767983,-500.0,0.00016438,2]
[351157286,1738369768008,-500.0,0.00016438,2]
[351157287,1738369768032,-500.0,0.00016438,2]
[351157288,1738369768055,-500.0,0.00016438,2]
[351157289,1738369768079,-841.68,0.00016438,2]
[351157290,1738369768102,-500.0,0.00016438,2]
[351157291,1738369768126,-500.0,0.00016438,2]
[351157292,1738369768149,-500.0,0.00016438,2]
[351157293,1738369768172,-500.0,0.00016438,2]
[351157294,1738369768200,-500.0,0.00016438,2]
[351157295,1738369768226,-500.0,0.00016438,2]
[351157296,1738369768249,-500.0,0.00016438,2]
[351157297,1738369768280,-611.63,0.00016438,2]
[351157298,1738369768303,-617.71214252,0.00016438,2]
[351157299,1738369768327,-500.0,0.00016438,2]
[351157300,1738369768352,-500.0,0.00016438,2]
[351157301,1738369768376,-1030.39,0.00016438,2]
[351157302,1738369768401,-500.0,0.00016438,2]
[351157303,1738369768426,-500.0,0.00016438,2]
[351157304,1738369768449,-500.0,0.00016438,2]
[351157305,1738369768473,-500.0,0.00016438,2]
[351157306,1738369768496,-500.0,0.00016438,2]
[351157307,1738369768519,-500.0,0.00016438,2]
[351157308,1738369768542,-500.0,0.00016438,2]
[351157309,1738369768566,-500.0,0.00016438,2]
[351157310,1738369768588,-500.0,0.00016438,2]
[351157311,1738369768612,-500.0,0.00016438,2]
[351157312,1738369768635,-500.0,0.00016438,2]
[351157313,1738369768661,-500.0,0.00016438,2]
[351157314,1738369768686,-522.38,0.00016438,2]
[351157315,1738369768849,-212.18285228,0.00016438,2]
[351157316,1738369768877,-500.0,0.00016438,2]
[351157317,1738369768897,-500.0,0.00016438,2]
[351157318,1738369768919,-500.0,0.00016438,2]
[351157319,1738369768938,-500.0,0.00016438,2]
[351157320,1738369768961,-500.0,0.00016438,2]
[351157321,1738369768983,-500.0,0.00016438,2]
[351157322,1738369769003,-500.0,0.00016438,2]
[351157323,1738369769025,-500.0,0.00016438,2]
[351157324,1738369769044,-500.0,0.00016438,2]